bitfinex-derivatives/quotes_BTCF0:USTF0_20251108
["timestamp","ask_amount","ask_price","bid_price","bid_amount"]
[1762587495306,0.09090464,102210.0,102200.0,0.68831798]
[1762587495607,0.09090464,102210.0,102200.0,0.32751798]
[1762587495800,0.07940464,102210.0,102200.0,0.68831798]
[1762587496001,0.07940464,102210.0,102200.0,0.7715949]
[1762587496403,0.03501464,102210.0,102200.0,0.7715949]
[1762587496601,0.07940464,102210.0,102200.0,0.7705949]
[1762587496806,0.07940464,102210.0,102200.0,0.7715949]
[1762587497303,0.04439,102210.0,102200.0,0.7705949]
[1762587499402,0.07940464,102210.0,102200.0,0.7705949]
[1762587500104,0.13205185,102220.0,102210.0,0.1570817]
[1762587500312,0.13205185,102220.0,102210.0,0.68643554]
[1762587501210,0.03501464,102220.0,102210.0,0.68643554]
[1762587501410,0.03901464,102220.0,102210.0,0.68643554]
[1762587505211,0.004,102220.0,102210.0,0.68643554]
[1762587507307,0.004,102220.0,102210.0,0.77071246]
[1762587508309,0.08766185,102230.0,102210.0,0.77071246]
[1762587508517,0.07893464,102230.0,102220.0,0.76893286]
[1762587508721,0.03501464,102230.0,102220.0,0.76893286]
[1762587509815,0.05844464,102230.0,102220.0,0.5161021]
[1762587510021,0.03701464,102230.0,102220.0,0.76893286]
[1762587510517,0.16021114,102240.0,102230.0,0.1552926]
[1762587510518,0.05264721,102240.0,102230.0,0.1552926]
[1762587510821,0.05264721,102240.0,102230.0,0.76892336]
[1762587511122,0.10645495,102250.0,102240.0,0.151693]
[1762587511310,0.09656721,102250.0,102240.0,0.76532376]
[1762587512319,0.09656721,102250.0,102240.0,0.68104684]
[1762587512822,0.09956721,102250.0,102240.0,0.68104684]
[1762587513028,0.1092871,102250.0,102240.0,0.58318384]
[1762587513520,0.1132871,102250.0,102240.0,0.58318384]
[1762587515123,0.1132871,102250.0,102240.0,0.68104684]
[1762587516521,0.1132871,102250.0,102240.0,0.58318384]
[1762587516717,0.1132871,102250.0,102240.0,0.22238384]
[1762587516915,0.1266171,102250.0,102240.0,0.22238384]
[1762587517218,0.4874171,102250.0,102240.0,0.21217384]
[1762587517425,0.4874171,102250.0,102240.0,0.22192384]
[1762587518028,0.1132871,102250.0,102240.0,0.58272384]
[1762587518823,0.1132871,102250.0,102240.0,0.68058684]
[1762587519330,0.1132871,102250.0,102240.0,0.76486376]
[1762587519824,0.1132871,102250.0,102240.0,0.66700076]
[1762587520029,0.4874171,102250.0,102240.0,0.22192384]
[1762587520421,0.4874171,102250.0,102240.0,0.31978684]
[1762587520628,0.1266171,102250.0,102240.0,0.31978684]
[1762587521032,0.1132871,102250.0,102240.0,0.31978684]
[1762587521230,0.1132871,102250.0,102240.0,0.22192384]
[1762587521532,0.1132871,102250.0,102240.0,0.31978684]
[1762587522032,0.4740871,102250.0,102240.0,0.31978684]
[1762587523034,0.0573,102240.0,102230.0,0.17241]
[1762587523227,0.4181,102240.0,102230.0,0.28001692]
[1762587523736,0.47074721,102240.0,102230.0,0.13041692]
[1762587524237,0.47274721,102240.0,102230.0,0.13041692]
[1762587525134,0.47374721,102240.0,102230.0,0.13041692]
[1762587526034,0.47374721,102240.0,102230.0,0.14423692]
[1762587526035,0.46779721,102240.0,102230.0,0.14423692]
[1762587526330,0.04405,102230.0,102220.0,0.14436396]
[1762587526531,0.40485,102230.0,102220.0,0.22864088]
[1762587527436,0.40585,102230.0,102220.0,0.22864088]
[1762587532034,0.45849721,102230.0,102220.0,0.22864088]
[1762587532337,0.5037226,102230.0,102220.0,0.22864088]
[1762587534328,0.5563095,102230.0,102220.0,0.22864088]
[1762587535439,0.1955095,102230.0,102220.0,0.32652298]
[1762587536542,0.5563095,102230.0,102220.0,0.22864088]
[1762587537039,0.5563095,102230.0,102220.0,0.32652298]
[1762587537839,0.1955095,102230.0,102220.0,0.32652298]
[1762587538732,0.1955095,102230.0,102220.0,0.68732298]
[1762587540038,0.1955095,102230.0,102220.0,0.58944088]
[1762587540340,0.1955095,102230.0,102220.0,0.32652298]
[1762587540537,0.23056077,102230.0,102220.0,0.68732298]
[1762587542039,0.20928077,102230.0,102220.0,0.58944088]
[1762587542243,0.23249077,102230.0,102220.0,0.58944088]
[1762587542436,0.23249077,102230.0,102220.0,0.22864088]
[1762587542939,0.23249077,102230.0,102220.0,0.32652298]
[1762587543142,0.05258598,102240.0,102230.0,0.1106577]
[1762587543438,0.05258598,102240.0,102230.0,0.68242154]
[1762587543640,0.05475989,102250.0,102240.0,0.153063]
[1762587543829,0.05475989,102250.0,102240.0,0.68241684]
[1762587544228,0.40584,102270.0,102260.0,0.04241]
[1762587544434,0.40584,102270.0,102260.0,0.22375384]
[1762587544630,0.41552323,102270.0,102260.0,0.32159764]
[1762587544833,0.39231323,102270.0,102260.0,0.32159764]
[1762587546432,0.39231323,102270.0,102260.0,0.32259764]
[1762587546742,0.00968323,102270.0,102260.0,0.40687456]
[1762587546943,0.5036695,102280.0,102270.0,0.0552]
[1762587547142,0.5036695,102280.0,102270.0,0.22375384]
[1762587547547,0.51334194,102280.0,102270.0,0.0552]
[1762587547837,0.51334194,102280.0,102270.0,0.13947692]
[1762587548229,0.51434194,102280.0,102270.0,0.13947692]
[1762587549641,0.51434194,102280.0,102270.0,0.0552]
[1762587549841,0.51434194,102280.0,102270.0,0.13947692]
[1762587551434,0.51434194,102280.0,102270.0,0.23731122]
[1762587554436,0.51434194,102280.0,102270.0,0.26530162]
[1762587555447,0.15354194,102280.0,102270.0,0.26530162]
[1762587556547,0.15354194,102280.0,102270.0,0.16746732]
[1762587556747,0.51434194,102280.0,102270.0,0.16746732]
[1762587556948,0.15354194,102280.0,102270.0,0.26530162]
[1762587557138,0.3608,102300.0,102290.0,0.1530151]
[1762587557343,0.503636,102310.0,102300.0,0.0552]
[1762587557647,0.52517339,102310.0,102300.0,0.13339732]
[1762587558053,0.52517339,102310.0,102300.0,0.15467732]
[1762587558445,0.52517339,102310.0,102300.0,0.16746732]
[1762587558658,0.52517339,102310.0,102300.0,0.04241]
[1762587559348,0.52817339,102310.0,102300.0,0.15467732]
[1762587559738,0.52817339,102310.0,102300.0,0.16746732]
[1762587560338,0.53117339,102310.0,102300.0,0.16746732]
[1762587560538,0.02321,102290.0,102280.0,0.05534704]
[1762587560739,0.40584,102290.0,102280.0,0.16761436]
[1762587561742,0.40584,102290.0,102280.0,0.05534704]
[1762587561949,0.40584,102290.0,102280.0,0.16761436]
[1762587562654,0.40684,102290.0,102280.0,0.16761436]
[1762587566753,0.4135,102290.0,102280.0,0.15482436]
[1762587567252,0.46586574,102290.0,102280.0,0.15482436]
[1762587570959,0.4135,102290.0,102280.0,0.15482436]
[1762587571555,0.46586574,102290.0,102280.0,0.15482436]
[1762587572051,0.46586574,102290.0,102280.0,0.04255704]
[1762587572456,0.46586574,102290.0,102280.0,0.00014704]
[1762587573257,0.46586574,102290.0,102280.0,0.02125704]
[1762587573554,0.4135,102290.0,102280.0,4e-08]
[1762587573762,0.59590827,102290.0,102280.0,4e-08]
[1762587574059,0.48364095,102290.0,102280.0,4e-08]
[1762587576156,0.43860095,102290.0,102280.0,4e-08]
[1762587582866,0.36846,102290.0,102280.0,4e-08]
[1762587583068,0.4556576,102290.0,102280.0,4e-08]
[1762587584265,0.4556576,102290.0,102280.0,0.05844004]
[1762587584472,0.48422305,102290.0,102280.0,0.05844004]
[1762587584659,0.48422301,102290.0,102280.0,0.05844004]
[1762587585166,0.47756301,102290.0,102280.0,0.17070736]
[1762587587357,0.40736,102290.0,102280.0,0.26853206]
[1762587587556,0.46001994,102290.0,102280.0,0.26853206]
[1762587588371,0.09921994,102290.0,102280.0,0.26853206]
[1762587591368,0.05365994,102290.0,102280.0,0.26853206]
[1762587592179,0.05365994,102290.0,102280.0,0.62933206]
[1762587600478,0.09824994,102290.0,102280.0,0.53150736]
[1762587600680,0.45904994,102290.0,102280.0,0.17070736]
[1762587600981,0.45527301,102290.0,102280.0,0.17066736]
[1762587601172,0.05366872,102290.0,102280.0,0.62929206]
[1762587601576,0.05366872,102290.0,102280.0,0.53146736]
[1762587601777,0.09825872,102290.0,102280.0,0.26849206]
[1762587603086,0.09825872,102290.0,102280.0,0.17066736]
[1762587603292,0.45905872,102290.0,102280.0,0.17066736]
[1762587604092,0.45905872,102290.0,102280.0,0.26849206]
[1762587604695,0.45905872,102290.0,102280.0,0.17066736]
[1762587607195,0.40639,102290.0,102280.0,0.17066736]
[1762587607693,0.47659301,102290.0,102280.0,0.17066736]
[1762587608696,0.40639,102290.0,102280.0,0.17066736]
[1762587608998,0.47659301,102290.0,102280.0,0.17066736]
[1762587609396,0.47659301,102290.0,102280.0,0.26849206]
[1762587609893,0.47659301,102290.0,102280.0,0.17066736]
[1762587612201,0.11579301,102290.0,102280.0,0.17066736]
[1762587612998,0.07120301,102290.0,102280.0,0.26849206]
[1762587613201,0.05370943,102290.0,102280.0,0.65465245]
[1762587613400,0.05370943,102290.0,102280.0,0.29385245]
[1762587613705,0.05370943,102290.0,102280.0,0.65465245]
[1762587616308,0.05370943,102290.0,102280.0,0.71072131]
[1762587617007,0.05370943,102290.0,102280.0,0.86032131]
[1762587618604,0.000147,102300.0,102290.0,0.1556852]
[1762587618807,0.000147,102300.0,102290.0,0.71031548]
[1762587619203,0.000147,102300.0,102290.0,0.68482138]
[1762587619907,0.48955809,102300.0,102290.0,0.06150675]
[1762587620103,0.04459,102290.0,102280.0,0.14203813]
[1762587620304,0.47559301,102290.0,102280.0,0.22620622]
[1762587621109,0.47559301,102290.0,102280.0,0.14203813]
[1762587621410,0.47559301,102290.0,102280.0,0.14303813]
[1762587622013,0.47559301,102290.0,102280.0,0.05887004]
[1762587622204,0.47559301,102290.0,102280.0,0.14303813]
[1762587622799,0.47559301,102290.0,102280.0,0.14403813]
[1762587625009,0.40539,102290.0,102280.0,0.1695242]
[1762587632818,0.40539,102290.0,102280.0,0.267349]
[1762587633318,0.40539,102290.0,102280.0,0.35151709]
[1762587633520,0.40539,102290.0,102280.0,0.25369229]
[1762587633822,0.40539,102290.0,102280.0,0.35151709]
[1762587634122,0.40539,102290.0,102280.0,0.25369229]
[1762587634519,0.40539,102290.0,102280.0,0.1695242]
[1762587635024,0.40539,102290.0,102280.0,0.14403813]
[1762587635523,0.40539,102290.0,102280.0,0.05987004]
[1762587635916,0.40539,102290.0,102280.0,0.14403813]
[1762587638624,0.40539,102290.0,102280.0,0.05987004]
[1762587638929,0.40539,102290.0,102280.0,0.14403813]
[1762587640026,0.48955809,102290.0,102280.0,0.10829813]
[1762587640330,0.5664211,102290.0,102280.0,0.10829813]
[1762587640530,0.48225301,102290.0,102280.0,0.13057813]
[1762587640723,0.46480102,102290.0,102280.0,0.13057813]
[1762587641430,0.46480102,102290.0,102280.0,0.14390813]
[1762587641927,0.45814102,102290.0,102280.0,0.14390813]
[1762587646729,0.54896911,102290.0,102280.0,0.04641004]
[1762587646934,0.49621809,102290.0,102280.0,0.00200004]
[1762587647631,0.41205,102290.0,102280.0,0.00200004]
[1762587647832,0.49621809,102290.0,102280.0,0.00200004]
[1762587648422,0.49621809,102290.0,102280.0,0.02453004]
[1762587649334,0.5664211,102290.0,102280.0,0.02453004]
[1762587649834,0.48225301,102290.0,102280.0,0.04667004]
[1762587650030,0.49621809,102290.0,102280.0,0.04667004]
[1762587650535,0.49621809,102290.0,102280.0,0.13083813]
[1762587650735,0.5664211,102290.0,102280.0,0.04667004]
[1762587654636,0.48225301,102290.0,102280.0,0.04667004]
[1762587654838,0.5664211,102290.0,102280.0,0.04667004]
[1762587655030,0.5664211,102290.0,102280.0,0.06003004]
[1762587655529,0.5664211,102290.0,102280.0,0.14419813]
[1762587655725,0.5597611,102290.0,102280.0,0.14419813]
[1762587659736,0.47559301,102290.0,102280.0,0.14419813]
[1762587659934,0.5597611,102290.0,102280.0,0.14419813]
[1762587665037,0.47559301,102290.0,102280.0,0.14419813]
[1762587666146,0.47559301,102290.0,102280.0,0.24202293]
[1762587666346,0.45162809,102300.0,102290.0,0.05822]
[1762587666347,0.47451301,102300.0,102290.0,0.05822]
[1762587666539,0.47451301,102300.0,102290.0,0.24020329]
[1762587667244,0.47451301,102300.0,102290.0,0.14238809]
[1762587668039,0.47551301,102300.0,102290.0,0.14238809]
[1762587669043,0.5596811,102300.0,102290.0,0.04486]
[1762587669248,0.04351,102290.0,102280.0,0.14238813]
[1762587669440,0.45709312,102290.0,102280.0,0.14238813]
[1762587670949,0.45709312,102290.0,102280.0,0.14438813]
[1762587671149,0.45709312,102290.0,102280.0,0.22855622]
[1762587673451,0.45709312,102290.0,102280.0,0.32638092]
[1762587674453,0.45709312,102290.0,102280.0,0.15804474]
[1762587674650,0.45709312,102290.0,102280.0,0.32638092]
[1762587675953,0.09629312,102290.0,102280.0,0.32638092]
[1762587677252,0.09629312,102290.0,102280.0,0.35205172]
[1762587677649,0.07513312,102290.0,102280.0,0.35205172]
[1762587677950,0.05278312,102290.0,102280.0,0.35205172]
[1762587678455,0.05278312,102290.0,102280.0,0.29594614]
[1762587679743,0.05278312,102290.0,102280.0,0.65674614]
[1762587681053,0.09629312,102290.0,102280.0,0.65674614]
[1762587688662,0.09629312,102290.0,102280.0,0.54451554]
[1762587688864,0.09629312,102290.0,102280.0,0.29594614]
[1762587689063,0.45709312,102290.0,102280.0,0.29594614]
[1762587689763,0.45709312,102290.0,102280.0,0.08589084]
[1762587689953,0.45709312,102290.0,102280.0,0.29594624]
[1762587690356,0.45709312,102290.0,102280.0,0.27027544]
[1762587690854,0.09629312,102290.0,102280.0,0.27027544]
[1762587691061,0.09629312,102290.0,102280.0,0.29583399]
[1762587691563,0.09629312,102290.0,102280.0,0.27027544]
[1762587692851,0.45709312,102290.0,102280.0,0.27027544]
[1762587693866,0.45709312,102290.0,102280.0,0.17245064]
[1762587694267,0.40431,102290.0,102280.0,0.17245064]
[1762587695364,0.45709881,102290.0,102280.0,0.19802212]
[1762587696570,0.45709881,102290.0,102280.0,0.08579152]
[1762587696758,0.45709881,102290.0,102280.0,0.19802212]
[1762587699556,0.45709881,102290.0,102280.0,0.08579152]
[1762587699864,0.45709881,102290.0,102280.0,0.29584692]
[1762587700367,0.45709881,102290.0,102280.0,0.19802212]
[1762587700661,0.02221,102260.0,102250.0,0.02625673]
[1762587700863,0.83704301,102260.0,102250.0,0.1688506]
[1762587701160,0.7567335,102260.0,102250.0,0.8667041]
[1762587701365,0.03513619,102260.0,102250.0,0.5836741]
[1762587701664,0.03513619,102260.0,102250.0,0.6275041]
[1762587701865,0.03513619,102260.0,102250.0,0.6315041]
[1762587702057,0.03513619,102260.0,102250.0,0.6325041]
[1762587702457,0.03513619,102260.0,102250.0,0.6285041]
[1762587702660,0.03513619,102260.0,102250.0,0.6325041]
[1762587703658,0.39593619,102270.0,102260.0,0.1553639]
[1762587703859,0.03513619,102270.0,102260.0,0.2675945]
[1762587704764,0.03613619,102270.0,102260.0,0.2675945]
[1762587705168,0.03713619,102270.0,102260.0,0.2675945]
[1762587705868,0.03613619,102270.0,102260.0,0.2675945]
[1762587706069,0.03513619,102270.0,102260.0,0.2685945]
[1762587708367,0.03513619,102270.0,102260.0,0.6293945]
[1762587708873,0.49397407,102280.0,102270.0,0.1553543]
[1762587709167,0.49397407,102280.0,102270.0,0.2675849]
[1762587709570,0.08783407,102280.0,102270.0,0.2675849]
[1762587709759,0.03513619,102280.0,102270.0,0.2675849]
[1762587710566,0.03713619,102280.0,102270.0,0.2675849]
[1762587711663,0.03713619,102280.0,102270.0,0.2685849]
[1762587711664,0.03513619,102280.0,102270.0,0.2685849]
[1762587711857,0.44127619,102280.0,102270.0,0.2685849]
[1762587712266,0.08047619,102280.0,102270.0,0.2685849]
[1762587712665,0.03513619,102280.0,102270.0,0.6293849]
[1762587712870,0.45883788,102290.0,102280.0,0.1553447]
[1762587713066,0.45883788,102290.0,102280.0,0.2675753]
[1762587713665,0.45883788,102290.0,102280.0,0.1697506]
[1762587714066,0.45983788,102290.0,102280.0,0.2675753]
[1762587714365,0.46083788,102290.0,102280.0,0.2675753]
[1762587714774,0.43833788,102290.0,102280.0,0.2675753]
[1762587715270,0.46083788,102290.0,102280.0,0.2675753]
[1762587716067,0.08981355,102290.0,102280.0,0.2675753]
[1762587716469,0.03711567,102290.0,102280.0,0.2675753]
[1762587716672,0.03711567,102290.0,102280.0,0.4171753]
[1762587717664,0.03711567,102290.0,102280.0,0.7779753]
[1762587719272,0.03711567,102290.0,102280.0,0.8902059]
[1762587719471,0.03711567,102290.0,102280.0,0.7779753]
[1762587719672,0.03611567,102290.0,102280.0,0.8902059]
[1762587719872,0.03511567,102290.0,102280.0,0.7789753]
[1762587720268,0.03511567,102290.0,102280.0,0.8912059]
[1762587720474,0.03512311,102300.0,102290.0,0.1548052]
[1762587720676,0.03512311,102300.0,102290.0,0.6278358]
[1762587721576,0.001,102300.0,102290.0,0.6278358]
[1762587722374,0.001,102300.0,102290.0,0.8722358]
[1762587722775,0.002,102300.0,102290.0,0.8722358]
[1762587723281,0.002,102300.0,102290.0,0.6278358]
[1762587723476,0.002,102300.0,102290.0,0.8722358]
[1762587723676,0.002,102300.0,102290.0,0.6278358]
[1762587725368,0.002,102300.0,102290.0,1.1756758]
[1762587727070,0.002,102300.0,102290.0,1.4200758]
[1762587728172,0.002,102300.0,102290.0,1.1756758]
[1762587728373,0.002,102300.0,102290.0,1.4200758]
[1762587728578,0.002,102300.0,102290.0,1.1756758]
[1762587728978,0.002,102300.0,102290.0,1.4200758]
[1762587730382,0.05432739,102310.0,102300.0,0.1547956]
[1762587730573,0.05432739,102310.0,102300.0,0.6278262]
[1762587730574,0.04468,102310.0,102300.0,0.6278262]
[1762587731780,0.04668,102310.0,102300.0,0.5155956]
[1762587731977,0.40748,102310.0,102300.0,0.1692206]
[1762587732176,0.04868,102310.0,102300.0,0.2670262]
[1762587732483,0.05827386,102310.0,102300.0,0.2670262]
[1762587733082,0.05827386,102310.0,102300.0,0.1692206]
[1762587733282,0.05827386,102310.0,102300.0,0.2670262]
[1762587733689,0.05827386,102310.0,102300.0,0.1692206]
[1762587734582,0.05827386,102310.0,102300.0,0.2670262]
[1762587734970,0.05827386,102310.0,102300.0,0.1692206]
[1762587735383,0.05827386,102310.0,102300.0,0.2670262]
[1762587735786,0.05427386,102310.0,102300.0,0.2680262]
[1762587736078,0.06789386,102310.0,102300.0,0.1712206]
[1762587736276,0.54092446,102310.0,102300.0,0.002]
[1762587736471,0.59362234,102310.0,102300.0,0.002]
[1762587736777,0.42869386,102310.0,102300.0,0.04638]
[1762587738187,0.0583,102300.0,102290.0,0.1566106]
[1762587738485,0.47175171,102300.0,102290.0,0.1566106]
[1762587739382,0.47175171,102300.0,102290.0,0.1586106]
[1762587740286,0.47175171,102300.0,102290.0,0.22836967]
[1762587740490,0.47175171,102300.0,102290.0,0.24097967]
[1762587740690,0.47175171,102300.0,102290.0,0.14316447]
[1762587741591,0.45813171,102300.0,102290.0,0.24097967]
[1762587741785,0.45813171,102300.0,102290.0,0.14316447]
[1762587742991,0.45813171,102300.0,102290.0,0.24097967]
[1762587744388,0.09733171,102300.0,102290.0,0.24097967]
[1762587744588,0.09733171,102300.0,102290.0,0.60177967]
[1762587745294,0.09733171,102300.0,102290.0,0.68595414]
[1762587746680,0.09733171,102300.0,102290.0,0.5176052]
[1762587746882,0.09733171,102300.0,102290.0,0.68595414]
[1762587748895,0.09733171,102300.0,102290.0,0.83555414]
[1762587750396,0.132501,102300.0,102290.0,0.83555414]
[1762587750993,0.07984929,102300.0,102290.0,0.83555414]
[1762587752894,0.132501,102300.0,102290.0,0.83555414]
[1762587753291,0.132501,102300.0,102290.0,0.47475414]
[1762587755198,0.132501,102300.0,102290.0,0.29276447]
[1762587755495,0.132501,102300.0,102290.0,0.39057967]
[1762587755699,0.132501,102300.0,102290.0,0.29276447]
[1762587755900,0.145201,102300.0,102290.0,0.29276447]
[1762587756110,0.47083171,102300.0,102290.0,0.29276447]
[1762587756297,0.47083171,102300.0,102290.0,0.28015447]
[1762587757308,0.47083171,102300.0,102290.0,0.27915447]
[1762587757510,0.47183171,102300.0,102290.0,0.27815447]
[1762587760609,0.47183171,102300.0,102290.0,0.12855447]
[1762587761806,0.47183171,102300.0,102290.0,0.10683447]
[1762587762109,0.47183171,102300.0,102290.0,0.12980447]
[1762587771719,0.48938301,102300.0,102290.0,0.12980447]
[1762587776019,0.41918,102300.0,102290.0,0.12980447]
[1762587776320,0.48938301,102300.0,102290.0,0.08417447]
[1762587776719,0.48938301,102300.0,102290.0,0.10663447]
[1762587777022,0.48938301,102300.0,102290.0,0.12788447]
[1762587777207,0.40648,102300.0,102290.0,0.14147447]
[1762587778020,0.40648,102300.0,102290.0,0.23928967]
[1762587779615,0.09846181,102300.0,102290.0,0.32346414]
[1762587781014,0.09746181,102300.0,102290.0,0.68526414]
[1762587781218,0.09746181,102300.0,102290.0,0.68626414]
[1762587784019,0.09746181,102300.0,102290.0,0.83586414]
[1762587789532,0.05278181,102300.0,102290.0,0.83586414]
[1762587789731,0.0879692,102300.0,102290.0,0.83586414]
[1762587789932,0.0879692,102300.0,102290.0,0.68626414]
[1762587791131,0.0879692,102300.0,102290.0,0.5179152]
[1762587791334,0.0879692,102300.0,102290.0,0.68626414]
[1762587792432,0.03518739,102300.0,102290.0,0.68626414]
[1762587794327,0.08810125,102310.0,102300.0,0.1551056]
[1762587794531,0.08810125,102310.0,102300.0,0.68425454]
[1762587795825,0.06788125,102310.0,102300.0,0.83385454]
[1762587797034,0.04578125,102310.0,102300.0,0.83385454]
[1762587798336,0.06788125,102310.0,102300.0,0.83385454]
[1762587798634,0.04578125,102310.0,102300.0,0.83385454]
[1762587799232,0.04478125,102310.0,102300.0,0.83485454]
[1762587799535,0.04478125,102310.0,102300.0,0.83585454]
[1762587799728,0.03518739,102310.0,102300.0,0.92002901]
[1762587800334,0.03518739,102310.0,102300.0,0.77967769]
[1762587800531,0.03518739,102310.0,102300.0,1.32743769]
[1762587802924,0.07850739,102310.0,102300.0,1.32743769]
[1762587803634,0.45249739,102310.0,102300.0,0.32107209]
[1762587803837,0.5052792,102310.0,102300.0,0.41887769]
[1762587804033,0.09169739,102310.0,102300.0,0.41887769]
[1762587804439,0.09169739,102310.0,102300.0,0.77967769]
[1762587805238,0.09169739,102310.0,102300.0,0.68187209]
[1762587805442,0.5052792,102310.0,102300.0,0.41887769]
[1762587805937,0.09169739,102310.0,102300.0,0.77967769]
[1762587806338,0.07850739,102310.0,102300.0,0.77967769]
[1762587807035,0.07850739,102310.0,102300.0,0.6675056]
[1762587807234,0.07850739,102310.0,102300.0,0.77967769]
[1762587807638,0.07850739,102310.0,102300.0,0.63007769]
[1762587808141,0.43930739,102310.0,102300.0,0.17147209]
[1762587808439,0.43930739,102310.0,102300.0,0.26927769]
[1762587809438,0.07850739,102310.0,102300.0,0.26927769]
[1762587811341,0.1312892,102310.0,102300.0,0.26927769]
[1762587813036,0.1448292,102310.0,102300.0,0.17147209]
[1762587813343,0.1448292,102310.0,102300.0,0.26927769]
[1762587814146,0.1448292,102310.0,102300.0,0.17147209]
[1762587814337,0.45284739,102310.0,102300.0,0.04571]
[1762587814537,0.47044181,102310.0,102300.0,0.04571]
[1762587816540,0.47044181,102310.0,102300.0,0.1435156]
[1762587816936,0.47044181,102310.0,102300.0,0.15588209]
[1762587817144,0.11064181,102310.0,102300.0,0.26747769]
[1762587820351,0.09710181,102310.0,102300.0,0.26747769]
[1762587821243,0.09710181,102310.0,102300.0,0.62827769]
[1762587826158,0.09710181,102310.0,102300.0,0.26747769]
[1762587826359,0.09710181,102310.0,102300.0,0.62827769]
[1762587827861,0.09710181,102310.0,102300.0,0.53047209]
[1762587828049,0.45790181,102310.0,102300.0,0.16967209]
[1762587828553,0.09710181,102310.0,102300.0,0.62827769]
[1762587828759,0.03618706,102310.0,102300.0,0.62827769]
[1762587829361,0.05378181,102310.0,102300.0,0.62827769]
[1762587830963,0.05378181,102310.0,102300.0,0.77787769]
[1762587834664,0.08897629,102310.0,102300.0,0.77787769]
[1762587834859,0.03619448,102310.0,102300.0,0.77787769]
[1762587836158,0.03619448,102310.0,102300.0,0.80420025]
[1762587836357,0.03619448,102310.0,102300.0,0.77787769]
[1762587836553,0.03519448,102310.0,102300.0,0.77887769]
[1762587836970,0.05849448,102310.0,102300.0,0.77887769]
[1762587837369,0.08151448,102310.0,102300.0,0.77887769]
[1762587837566,0.08151448,102310.0,102300.0,0.32027209]
[1762587837770,0.08151448,102310.0,102300.0,0.32127209]
[1762587838171,0.45531448,102310.0,102300.0,0.32127209]
[1762587838365,0.45531448,102310.0,102300.0,0.30748209]
[1762587839678,0.47290181,102310.0,102300.0,0.32043209]
[1762587839869,0.47290181,102310.0,102300.0,0.17083209]
[1762587843881,0.42012,102310.0,102300.0,0.17083209]
[1762587844378,0.42012,102310.0,102300.0,0.13663209]
[1762587844576,0.47289697,102310.0,102300.0,0.002]
[1762587844974,0.47289697,102310.0,102300.0,0.04819]
[1762587845775,0.47289697,102310.0,102300.0,0.16036209]
[1762587846972,0.47289697,102310.0,102300.0,0.11417209]
[1762587847177,0.47289697,102310.0,102300.0,0.002]
[1762587847379,0.47289508,102310.0,102300.0,0.04819]
[1762587847977,0.42012,102310.0,102300.0,0.04819]
[1762587848583,0.42012,102310.0,102300.0,0.04719]
[1762587848889,0.42112,102310.0,102300.0,0.15936209]
[1762587849187,0.42112,102310.0,102300.0,0.04719]
[1762587849383,0.42112,102310.0,102300.0,0.15936209]
[1762587849782,0.42112,102310.0,102300.0,0.15836209]
[1762587850693,0.42112,102310.0,102300.0,0.04619]
[1762587851784,0.42112,102310.0,102300.0,0.15836209]
[1762587854484,0.47387729,102310.0,102300.0,0.15836209]
[1762587856892,0.42112,102310.0,102300.0,0.15836209]
[1762587859689,0.47387321,102310.0,102300.0,0.15836209]
[1762587862289,0.47387321,102310.0,102300.0,0.21451822]
[1762587869696,0.47387321,102310.0,102300.0,0.32559382]
[1762587869997,0.05375321,102310.0,102300.0,0.40975793]
[1762587870496,0.05375321,102310.0,102300.0,0.77055793]
[1762587873690,0.07694321,102310.0,102300.0,0.77055793]
[1762587873891,0.09936321,102310.0,102300.0,0.77055793]
[1762587879102,0.46016321,102310.0,102300.0,0.22778822]
[1762587881101,0.47397321,102310.0,102300.0,0.22778822]
[1762587881404,0.42122,102310.0,102300.0,0.21451822]
[1762587882405,0.49142301,102310.0,102300.0,0.21451822]
[1762587885205,0.4740142,102310.0,102300.0,0.21451822]
[1762587894109,0.42122,102310.0,102300.0,0.21451822]
[1762587894902,0.49142301,102310.0,102300.0,0.21451822]
[1762587901612,0.42122,102310.0,102300.0,0.21451822]
[1762587903018,0.06042,102310.0,102300.0,0.21451822]
[1762587903228,0.49142301,102310.0,102300.0,0.21451822]
[1762587903735,0.49142301,102310.0,102300.0,0.08416411]
[1762587903924,0.49142301,102310.0,102300.0,0.12922411]
[1762587904233,0.49142301,102310.0,102300.0,0.21338822]
[1762587905123,0.49142301,102310.0,102300.0,0.19036822]
[1762587905331,0.49142301,102310.0,102300.0,0.16832822]
[1762587905529,0.49142301,102310.0,102300.0,0.19036822]
[1762587906133,0.49142301,102310.0,102300.0,0.21338822]
[1762587915734,0.49142301,102310.0,102300.0,0.04506]
[1762587915938,0.49142301,102310.0,102300.0,0.21338822]
[1762587918241,0.49142301,102310.0,102300.0,0.08416411]
[1762587918540,0.42122,102310.0,102300.0,0.08416411]
[1762587918740,0.42122,102310.0,102300.0,0.10620411]
[1762587919039,0.42122,102310.0,102300.0,0.12922411]
[1762587919239,0.42122,102310.0,102300.0,0.21338822]
[1762587919642,0.40741,102310.0,102300.0,0.22692822]
[1762587919829,0.47780989,102310.0,102300.0,0.22692822]
[1762587920034,0.40741,102310.0,102300.0,0.22692822]
[1762587920534,0.42104,102310.0,102300.0,0.22692822]
[1762587921942,0.49143989,102310.0,102300.0,0.22692822]
[1762587922446,0.49143989,102310.0,102300.0,0.15727794]
[1762587925435,0.49143989,102310.0,102300.0,0.17120794]
[1762587928640,0.42104,102310.0,102300.0,0.17120794]
[1762587931144,0.40741,102310.0,102300.0,0.17120794]
[1762587931352,0.11700989,102310.0,102300.0,0.17120794]
[1762587932351,0.47780989,102310.0,102300.0,0.17120794]
[1762587933954,0.4602103,102310.0,102300.0,0.17120794]
[1762587934852,0.49105989,102310.0,102300.0,0.17120794]
[1762587936747,0.49105989,102310.0,102300.0,0.26901354]
[1762587937467,0.49105989,102310.0,102300.0,0.17120794]
[1762587938554,0.49105989,102310.0,102300.0,0.26901354]
[1762587938749,0.47780989,102310.0,102300.0,0.26901354]
[1762587939253,0.11700989,102310.0,102300.0,0.26901354]
[1762587941154,0.001,102310.0,102300.0,0.62981354]
[1762587941354,0.05377846,102310.0,102300.0,0.62981354]
[1762587941555,0.001,102310.0,102300.0,0.62981354]
[1762587941756,0.05377627,102310.0,102300.0,0.62981354]
[1762587946461,0.4546576,102330.0,102300.0,0.62981354]
[1762587946462,0.04285,102330.0,102320.0,0.1555265]
[1762587946660,0.1131674,102330.0,102320.0,0.26774444]
[1762587946866,0.1131674,102330.0,102320.0,0.16995794]
[1762587947155,0.1131674,102330.0,102320.0,0.26774444]
[1762587947362,0.0528753,102330.0,102320.0,0.26774444]
[1762587947553,0.0528753,102330.0,102320.0,0.16995794]
[1762587947750,0.0548753,102330.0,102320.0,0.16995794]
[1762587948057,0.1251927,102330.0,102320.0,0.16995794]
[1762587948254,0.0548753,102330.0,102320.0,0.16995794]
[1762587948660,0.0578753,102330.0,102320.0,0.16995794]